fUSD/lending_fUSD_20260513
["ID","MTS","AMOUNT","RATE_DAILY","PERIOD"]
[422143877,1778617855000,-511.28,0.00039923,7]
[422143876,1778617855000,-2292.59,0.00039923,7]
[422143887,1778617855000,-188.53,0.00039967,30]
[422143882,1778617855000,-188.54,0.00039923,7]
[422143888,1778617855000,-2292.55,0.00039967,30]
[422143893,1778617855000,-75399.53655657,0.0003997,2]
[422143900,1778617855000,-500.0,0.00039999,31]
[422143898,1778617855000,-500.0,0.00039999,31]
[422143890,1778617855000,-511.31,0.00039967,30]
[422143899,1778617855000,-500.0,0.00039999,31]
[422143891,1778617855000,-188.54,0.00039967,30]
[422143895,1778617855000,-463.30904981,0.00039999,7]
[422143892,1778617855000,-968.24,0.00039968,30]
[422143894,1778617855000,-3050.84825275,0.00039999,2]
[422143897,1778617855000,-500.0,0.00039999,31]
[422143896,1778617855000,-178.11709324,0.00039999,31]
[422143902,1778617855000,-500.0,0.00039999,31]
[422143904,1778617855000,-500.0,0.00039999,31]
[422143913,1778617855000,-176.91736781,0.00039999,31]
[422143889,1778617855000,-967.75,0.00039967,30]
[422143885,1778617855000,-2292.59,0.00039967,30]
[422143901,1778617855000,-500.0,0.00039999,31]
[422143873,1778617855000,-157.71229644,0.000399,2]
[422143845,1778617855000,-2292.55,0.00039791,7]
[422143847,1778617855000,-511.31,0.00039791,7]
[422143846,1778617855000,-967.75,0.00039791,7]
[422143848,1778617855000,-188.54,0.00039791,7]
[422143851,1778617855000,-511.28,0.00039835,30]
[422143850,1778617855000,-2292.59,0.00039835,30]
[422143852,1778617855000,-188.53,0.00039835,30]
[422143849,1778617855000,-968.24,0.00039792,7]
[422143853,1778617855000,-2292.55,0.00039835,30]
[422143854,1778617855000,-967.75,0.00039835,30]
[422143855,1778617855000,-511.31,0.00039835,30]
[422143861,1778617855000,-188.53,0.00039879,2]
[422143859,1778617855000,-2292.59,0.00039879,2]
[422143875,1778617855000,-1815.17,0.00039901,120]
[422143860,1778617855000,-511.28,0.00039879,2]
[422143858,1778617855000,-999.88,0.00039878,2]
[422143857,1778617855000,-968.24,0.00039836,30]
[422143865,1778617855000,-188.54,0.00039879,2]
[422143864,1778617855000,-511.31,0.00039879,2]
[422143862,1778617855000,-2292.55,0.00039879,2]
[422143866,1778617855000,-30000.0,0.0003988,2]
[422143867,1778617855000,-26772.34407074,0.0003988,10]
[422143868,1778617855000,-1786498.77509648,0.0003988,30]
[422143863,1778617855000,-967.75,0.00039879,2]
[422143869,1778617855000,-968.24,0.0003988,2]
[422143871,1778617855000,-21000.0,0.000399,30]
[422143870,1778617855000,-198.09186508,0.0003989,2]
[422143872,1778617855000,-15902.35402825,0.000399,2]
[422143856,1778617855000,-188.54,0.00039835,30]
[422143912,1778617855000,-500.0,0.00039999,31]
[422143932,1778617855000,-500.0,0.00039999,31]
[422143911,1778617855000,-500.0,0.00039999,31]
[422143941,1778617855000,-500.0,0.00039999,31]
[422143942,1778617855000,-500.0,0.00039999,31]
[422143951,1778617855000,-2100.16983009,0.0004,2]
[422143952,1778617855000,-434.88936672,0.0004,2]
[422143943,1778617855000,-500.0,0.00039999,31]
[422143944,1778617855000,-500.0,0.00039999,31]
[422143954,1778617855000,-24134.93548826,0.0004,2]
[422143946,1778617855000,-500.0,0.00039999,31]
[422143945,1778617855000,-350.0,0.00039999,31]
[422143948,1778617855000,-350.0,0.00039999,31]
[422143953,1778617855000,-396.34991354,0.0004,2]
[422143947,1778617855000,-200.0,0.00039999,31]
[422143950,1778617855000,-500.0,0.00039999,31]
[422143949,1778617855000,-200.0,0.00039999,31]
[422143966,1778617855000,-196.8324911,0.0004,120]
[422143967,1778617855000,-393.56193328,0.0004,7]
[422143957,1778617855000,-330.25822551,0.0004,2]
[422143958,1778617855000,-319.56587598,0.0004,2]
[422143955,1778617855000,-1585.73370663,0.0004,2]
[422143961,1778617855000,-515.55674824,0.0004,2]
[422143960,1778617855000,-10861.7725003,0.0004,2]
[422143964,1778617855000,-688.97,0.0004,2]
[422143962,1778617855000,-610.23323427,0.0004,2]
[422143963,1778617855000,-2045.07522,0.0004,10]
[422143959,1778617855000,-163.97940622,0.0004,2]
[422143965,1778617855000,-726.0,0.0004,10]
[422143968,1778617855000,-200.0,0.0004,7]
[422143936,1778617855000,-500.0,0.00039999,31]
[422143938,1778617855000,-278.51483445,0.00039999,31]
[422143956,1778617855000,-4176.07107658,0.0004,2]
[422143935,1778617855000,-445.29370004,0.00039999,31]
[422143934,1778617855000,-350.0,0.00039999,31]
[422143907,1778617855000,-500.0,0.00039999,31]
[422143905,1778617855000,-500.0,0.00039999,31]
[422143906,1778617855000,-364.99330289,0.00039999,31]
[422143908,1778617855000,-492.55486292,0.00039999,31]
[422143910,1778617855000,-500.0,0.00039999,31]
[422143909,1778617855000,-500.0,0.00039999,31]
[422143914,1778617855000,-500.0,0.00039999,31]
[422143916,1778617855000,-500.0,0.00039999,31]
[422143917,1778617855000,-500.0,0.00039999,31]
[422143918,1778617855000,-500.0,0.00039999,31]
[422143925,1778617855000,-418.37085648,0.00039999,31]
[422143919,1778617855000,-500.0,0.00039999,31]
[422143915,1778617855000,-300.0,0.00039999,31]
[422143903,1778617855000,-500.0,0.00039999,31]
[422143930,1778617855000,-500.0,0.00039999,31]
[422143937,1778617855000,-508.60396429,0.00039999,31]
[422143920,1778617855000,-500.0,0.00039999,31]
[422143931,1778617855000,-500.0,0.00039999,31]
[422143933,1778617855000,-447.07153927,0.00039999,31]
[422143940,1778617855000,-467.16780039,0.00039999,31]
[422143939,1778617855000,-350.00000001,0.00039999,31]
[422143928,1778617855000,-300.0,0.00039999,31]
[422143923,1778617855000,-500.0,0.00039999,31]
[422143924,1778617855000,-568.79003183,0.00039999,31]
[422143927,1778617855000,-500.0,0.00039999,31]
[422143926,1778617855000,-388.6739334,0.00039999,31]
[422143922,1778617855000,-500.0,0.00039999,31]
[422143921,1778617855000,-500.0,0.00039999,31]
[422143929,1778617855000,-500.0,0.00039999,31]
[422143977,1778617856000,-3000.0,0.0004,30]
[422143974,1778617856000,-3000.0,0.0004,30]
[422143978,1778617856000,-3000.0,0.0004,30]
[422143975,1778617856000,-3000.0,0.0004,30]
[422143982,1778617856000,-5000.0,0.0004,41]
[422143973,1778617856000,-3000.0,0.0004,30]
[422143972,1778617856000,-308.5900429,0.0004,30]
[422143970,1778617856000,-10000.41253397,0.0004,6]
[422143971,1778617856000,-300.0,0.0004,120]
[422143979,1778617856000,-2000.0,0.0004,30]
[422143969,1778617856000,-10000.78546321,0.0004,5]
[422143976,1778617856000,-3165.0,0.0004,30]
[422143989,1778617856000,-166.66,0.00013836,2]
[422143983,1778617856000,-5513339.37972097,0.0004,120]
[422143981,1778617856000,-11281.0,0.0004,120]
[422143991,1778617856000,-582.57272606,0.00016595,2]
[422143990,1778617856000,-166.66,0.00013973,2]
[422143988,1778617856000,-166.66,0.00013699,2]
[422143992,1778617856000,-536.75196986,0.00016595,2]
[422143987,1778617856000,-133.40369836,0.00038356,2]
[422143985,1778617856000,-500.85114136,0.00013031,2]
[422143984,1778617856000,-252.9257169,0.0004,120]
[422143980,1778617856000,-1136.32455977,0.0004,7]
[422143986,1778617856000,-150.0,0.0002058,2]
[422143996,1778617950000,500.0,0.00041481,120]
[422143995,1778617950000,500.0,0.00041481,120]
[422143994,1778617950000,500.0,0.00041481,120]
[422143993,1778617950000,500.0,0.00041481,120]
[422143998,1778617951000,500.0,0.00041481,120]
[422143997,1778617951000,500.0,0.00041481,120]
[422143999,1778617954000,299.42619551,0.00041481,120]
[422144000,1778618061000,170.231627,0.00026849,120]
[422144006,1778618262000,170.231627,0.00023451,120]
[422144010,1778618371000,151.51,9.402e-05,2]
[422144014,1778618492000,10.32309868,0.00016438,30]
[422144013,1778618492000,143.71432961,0.00016438,30]
[422144015,1778618492000,154.03742829,0.00016438,30]
[422144017,1778618509000,154.03742829,0.00016438,30]
[422144016,1778618509000,154.03742829,0.00016438,30]
[422144019,1778618526000,154.03742829,0.00016438,30]
[422144018,1778618526000,154.03742829,0.00016438,30]
[422144021,1778618565000,184.17,5.907e-05,2]
[422144022,1778618566000,184.17,6.206e-05,2]
[422144024,1778618566000,184.17,6.804e-05,2]
[422144025,1778618566000,184.17,7.102e-05,2]
[422144023,1778618566000,184.17,6.505e-05,2]
[422144030,1778618567000,184.17,8.297e-05,2]
[422144029,1778618567000,44.31128796,7.999e-05,2]
[422144028,1778618567000,139.85871204,7.999e-05,2]
[422144027,1778618567000,184.17,7.7e-05,2]
[422144026,1778618567000,184.17,7.401e-05,2]
[422144031,1778618568000,184.17,8.596e-05,2]
[422144032,1778618568000,184.17,8.895e-05,2]
[422144033,1778618568000,126.07421364,9.194e-05,2]
[422144034,1778618568000,58.09578636,9.194e-05,2]
[422144036,1778618569000,184.17,9.791e-05,2]
[422144035,1778618569000,184.17,9.492e-05,2]
[422144037,1778618752000,9933.0,0.000415,120]
[422144038,1778618909000,152.0,0.00026915,120]
[422144057,1778619032000,-150.0,0.00010959,2]
[422144053,1778619032000,-252.0,0.00010911,2]
[422144059,1778619032000,-500.0,0.00010995,2]
[422144058,1778619032000,-184.17,0.00010986,2]
[422144060,1778619032000,-200.0,0.00011057,2]
[422144062,1778619032000,-5000.0,0.00011099,2]
[422144056,1778619032000,-150.0,0.00010958,2]
[422144063,1778619032000,-500.0,0.00011099,2]
[422144065,1778619032000,-778.41,0.00011112,2]
[422144066,1778619032000,-184.17,0.00011285,2]
[422144064,1778619032000,-250.0,0.00011099,2]
[422144061,1778619032000,-193.0,0.00011099,2]
[422144055,1778619032000,-53627.56,0.00010912,2]
[422144042,1778619032000,-250.0,0.0001009,2]
[422144051,1778619032000,-300.0,0.00010911,2]
[422144052,1778619032000,-1200.0,0.00010911,2]
[422144050,1778619032000,-6177.65183422,0.000108,2]
[422144048,1778619032000,-1852.42,0.00010656,2]
[422144049,1778619032000,-184.17,0.00010687,2]
[422144047,1778619032000,-202.78,0.00010531,2]
[422144046,1778619032000,-917.01,0.00010455,2]
[422144045,1778619032000,-184.17,0.00010389,2]
[422144044,1778619032000,-272.0,0.0001019,2]
[422144043,1778619032000,-194.44773606,0.0001009,2]
[422144068,1778619032000,-15026.34857583,0.00011484,2]
[422144041,1778619032000,-599.41046989,0.0001009,2]
[422144040,1778619032000,-184.17,0.0001009,2]
[422144054,1778619032000,-300.0,0.00010911,2]
[422144067,1778619032000,-2195.1,0.00011373,2]
[422144072,1778619032000,-250.0921687,0.00011582,2]
[422144071,1778619032000,-288.10044757,0.00011582,2]
[422144116,1778619032000,-500.0,0.00011582,2]
[422144114,1778619032000,-500.0,0.00011582,2]
[422144110,1778619032000,-500.0,0.00011582,2]
[422144108,1778619032000,-500.0,0.00011582,2]
[422144112,1778619032000,-500.0,0.00011582,2]
[422144102,1778619032000,-500.0,0.00011582,2]
[422144105,1778619032000,-500.0,0.00011582,2]
[422144100,1778619032000,-178.27298443,0.00011582,2]
[422144096,1778619032000,-500.0,0.00011582,2]
[422144069,1778619032000,-5019.41367791,0.00011484,2]
[422144094,1778619032000,-500.0,0.00011582,2]
[422144089,1778619032000,-500.0,0.00011582,2]
[422144083,1778619032000,-500.0,0.00011582,2]
[422144098,1778619032000,-500.0,0.00011582,2]
[422144087,1778619032000,-500.0,0.00011582,2]
[422144070,1778619032000,-500.0,0.00011582,2]
[422144085,1778619032000,-500.0,0.00011582,2]
[422144075,1778619032000,-500.0,0.00011582,2]
[422144073,1778619032000,-435.18898047,0.00011582,2]
[422144076,1778619032000,-500.0,0.00011582,2]
[422144077,1778619032000,-500.0,0.00011582,2]
[422144074,1778619032000,-500.0,0.00011582,2]
[422144079,1778619032000,-500.0,0.00011582,2]
[422144080,1778619032000,-500.0,0.00011582,2]
[422144092,1778619032000,-500.0,0.00011582,2]
[422144082,1778619032000,-500.0,0.00011582,2]
[422144081,1778619032000,-500.0,0.00011582,2]
[422144078,1778619032000,-500.0,0.00011582,2]
[422144131,1778619033000,-500.0,0.00011582,2]
[422144119,1778619033000,-500.0,0.00011582,2]
[422144121,1778619033000,-500.0,0.00011582,2]
[422144125,1778619033000,-500.0,0.00011582,2]
[422144133,1778619033000,-500.0,0.00011582,2]
[422144135,1778619033000,-500.0,0.00011582,2]
[422144123,1778619033000,-500.0,0.00011582,2]
[422144127,1778619033000,-500.0,0.00011582,2]
[422144129,1778619033000,-500.0,0.00011582,2]
[422144156,1778619033000,-17321.19464728,0.00011583,2]
[422144142,1778619033000,-500.0,0.00011582,2]
[422144158,1778619033000,-74129.41180526,0.00011583,2]
[422144160,1778619033000,-7997.40006986,0.00011583,2]
[422144153,1778619033000,-45634.77477495,0.00011583,2]
[422144151,1778619033000,-500.0,0.00011582,2]
[422144137,1778619033000,-500.0,0.00011582,2]
[422144146,1778619033000,-500.0,0.00011582,2]
[422144144,1778619033000,-550.0,0.00011582,2]
[422144140,1778619033000,-500.0,0.00011582,2]
[422144148,1778619033000,-500.0,0.00011582,2]
[422144260,1778619038000,-206.65,0.0001267,2]
[422144255,1778619038000,-196.98785889,0.00012576,2]
[422144254,1778619038000,-528.38409252,0.00012576,2]
[422144252,1778619038000,-5000.0,0.0001257,2]
[422144256,1778619038000,-6600.0,0.000126,4]
[422144262,1778619038000,-500.0,0.00012678,2]
[422144257,1778619038000,-190.01670168,0.00012607,2]
[422144258,1778619038000,-190.01670168,0.00012628,2]
[422144259,1778619038000,-7696.0,0.0001263,2]
[422144261,1778619038000,-161.92,0.00012677,2]
[422144268,1778619038000,-284.19145988,0.00012691,2]
[422144263,1778619038000,-806.41919682,0.00012682,2]
[422144266,1778619038000,-500.0,0.00012691,2]
[422144265,1778619038000,-500.0,0.00012691,2]
[422144253,1778619038000,-1700.46916721,0.00012576,2]
[422144267,1778619038000,-617.07918016,0.00012691,2]
[422144269,1778619038000,-500.0,0.00012691,2]
[422144271,1778619038000,-500.0,0.00012691,2]
[422144270,1778619038000,-500.0,0.00012691,2]
[422144272,1778619038000,-500.0,0.00012691,2]
[422144277,1778619038000,-13300.0,0.000128,4]
[422144264,1778619038000,-265.66159706,0.00012691,2]
[422144249,1778619038000,-3300.0,0.000125,4]
[422144242,1778619038000,-4120.02,0.00012055,2]
[422144250,1778619038000,-1562.18,0.00012566,2]
[422144227,1778619038000,-184.17,0.00011584,2]
[422144226,1778619038000,-116841.19870265,0.00011583,2]
[422144228,1778619038000,-2000.0,0.00011601,2]
[422144229,1778619038000,-264.15,0.00011601,2]
[422144230,1778619038000,-191.04,0.00011639,2]
[422144231,1778619038000,-350.6190386,0.00011683,2]
[422144232,1778619038000,-1562.18,0.0001169,2]
[422144233,1778619038000,-9230.47,0.00011797,2]
[422144234,1778619038000,-170.0,0.00011797,2]
[422144235,1778619038000,-500.0,0.00011856,2]
[422144251,1778619038000,-426.8409,0.0001257,2]
[422144236,1778619038000,-1562.18,0.00011982,2]
[422144239,1778619038000,-255.0,0.00011999,2]
[422144238,1778619038000,-163.05,0.00011995,2]
[422144240,1778619038000,-1680.0,0.00012002,2]
[422144241,1778619038000,-161.92,0.00012009,2]
[422144243,1778619038000,-500.0,0.0001213,2]
[422144246,1778619038000,-151.41,0.00012329,2]
[422144245,1778619038000,-340.18,0.00012313,2]
[422144274,1778619038000,-170.20796659,0.00012692,2]
[422144244,1778619038000,-1562.18,0.00012274,2]
[422144247,1778619038000,-500.0,0.00012404,2]
[422144237,1778619038000,-420.0,0.00011991,2]
[422144275,1778619038000,-2000.0,0.00012693,2]
[422144248,1778619038000,-15026.34857577,0.0001248,2]
[422144276,1778619038000,-10000.0,0.000127,4]
[422144306,1778619038000,-500.0,0.00013698,2]
[422144307,1778619038000,-500.0,0.00013698,2]
[422144308,1778619038000,-500.0,0.00013698,2]
[422144310,1778619038000,-500.0,0.00013698,2]
[422144322,1778619038000,-500.0,0.00013698,2]
[422144309,1778619038000,-500.0,0.00013698,2]
[422144320,1778619038000,-500.0,0.00013698,2]
[422144312,1778619038000,-500.0,0.00013698,2]
[422144318,1778619038000,-500.0,0.00013698,2]
[422144316,1778619038000,-500.0,0.00013698,2]
[422144303,1778619038000,-500.0,0.00013698,2]
[422144328,1778619038000,-500.0,0.00013698,2]
[422144326,1778619038000,-505.50097699,0.00013698,2]
[422144330,1778619038000,-500.0,0.00013698,2]
[422144344,1778619038000,-500.0,0.00013698,2]
[422144342,1778619038000,-500.0,0.00013698,2]
[422144332,1778619038000,-500.0,0.00013698,2]
[422144334,1778619038000,-500.0,0.00013698,2]
[422144338,1778619038000,-500.0,0.00013698,2]
[422144336,1778619038000,-500.0,0.00013698,2]
[422144340,1778619038000,-500.0,0.00013698,2]
[422144273,1778619038000,-500.0,0.00012691,2]
[422144324,1778619038000,-500.0,0.00013698,2]
[422144302,1778619038000,-234.66857943,0.00013698,2]
[422144314,1778619038000,-500.0,0.00013698,2]
[422144305,1778619038000,-500.0,0.00013698,2]
[422144278,1778619038000,-190.01670168,0.00012836,2]
[422144304,1778619038000,-500.0,0.00013698,2]
[422144280,1778619038000,-214.86625456,0.00012893,2]
[422144279,1778619038000,-1562.18,0.00012858,2]
[422144281,1778619038000,-16700.0,0.000129,4]
[422144282,1778619038000,-160.0,0.00012907,2]
[422144283,1778619038000,-208.2157166,0.00012907,2]
[422144292,1778619038000,-15026.34857577,0.00013476,2]
[422144291,1778619038000,-161.92,0.00013344,2]
[422144285,1778619038000,-503.68627816,0.00012952,2]
[422144290,1778619038000,-2351.0,0.00013202,2]
[422144287,1778619038000,-2000.0,0.00013051,2]
[422144293,1778619038000,-152.0,0.00013512,2]
[422144289,1778619038000,-587.0,0.00013178,2]
[422144299,1778619038000,-500.0,0.00013698,2]
[422144301,1778619038000,-500.0,0.00013698,2]
[422144298,1778619038000,-500.0,0.00013698,2]
[422144295,1778619038000,-500.0,0.00013698,2]
[422144300,1778619038000,-503.97223123,0.00013698,2]
[422144296,1778619038000,-503.33958832,0.00013698,2]
[422144294,1778619038000,-152.0,0.00013516,2]
[422144288,1778619038000,-433.0,0.00013139,2]
[422144297,1778619038000,-500.0,0.00013698,2]
[422144434,1778619039000,-166.66,0.00014384,2]
[422144432,1778619039000,-166.66,0.00014247,2]
[422144428,1778619039000,-326.666179,0.00014183,2]
[422144430,1778619039000,-340.463255,0.00014211,2]
[422144426,1778619039000,-272.221816,0.00014183,2]
[422144410,1778619039000,-1447.21,0.00013699,2]
[422144412,1778619039000,-200.0,0.00013699,2]
[422144422,1778619039000,-161.92,0.00014011,2]
[422144418,1778619039000,-166.66,0.00013973,2]
[422144414,1778619039000,-166.66,0.00013699,2]
[422144424,1778619039000,-166.66,0.0001411,2]
[422144416,1778619039000,-166.66,0.00013836,2]
[422144437,1778619039000,-736.0,0.00014388,2]
[422144456,1778619039000,-150.0,0.00014499,2]
[422144440,1778619039000,-15026.34857577,0.00014472,2]
[422144444,1778619039000,-150.0,0.00014499,2]
[422144442,1778619039000,-823.0,0.00014483,2]
[422144448,1778619039000,-150.0,0.00014499,2]
[422144438,1778619039000,-732.059422,0.00014428,2]
[422144451,1778619039000,-150.0,0.00014499,2]
[422144452,1778619039000,-150.0,0.00014499,2]
[422144454,1778619039000,-150.0,0.00014499,2]
[422144458,1778619039000,-150.0,0.00014499,2]
[422144473,1778619039000,-150.0,0.00014614,2]
[422144408,1778619039000,-251.75578303,0.00013698,2]
[422144475,1778619039000,-150.0,0.00014623,2]
[422144447,1778619039000,-150.0,0.00014499,2]
[422144420,1778619039000,-163.05,0.00013974,2]
[422144352,1778619039000,-500.0,0.00013698,2]
[422144404,1778619039000,-500.0,0.00013698,2]
[422144462,1778619039000,-3292.0,0.00014523,2]
[422144346,1778619039000,-500.0,0.00013698,2]
[422144348,1778619039000,-500.0,0.00013698,2]
[422144350,1778619039000,-500.0,0.00013698,2]
[422144354,1778619039000,-358.20398862,0.00013698,2]
[422144356,1778619039000,-500.0,0.00013698,2]
[422144358,1778619039000,-500.0,0.00013698,2]
[422144362,1778619039000,-161.95154702,0.00013698,2]
[422144368,1778619039000,-500.0,0.00013698,2]
[422144364,1778619039000,-500.0,0.00013698,2]
[422144366,1778619039000,-500.0,0.00013698,2]
[422144377,1778619039000,-500.0,0.00013698,2]
[422144407,1778619039000,-500.0,0.00013698,2]
[422144375,1778619039000,-500.0,0.00013698,2]
[422144373,1778619039000,-567.06631625,0.00013698,2]
[422144360,1778619039000,-520.46694454,0.00013698,2]
[422144378,1778619039000,-505.18613746,0.00013698,2]
[422144380,1778619039000,-500.0,0.00013698,2]
[422144383,1778619039000,-500.0,0.00013698,2]
[422144385,1778619039000,-509.43717845,0.00013698,2]
[422144389,1778619039000,-241.28425104,0.00013698,2]
[422144387,1778619039000,-500.0,0.00013698,2]
[422144396,1778619039000,-500.0,0.00013698,2]
[422144398,1778619039000,-500.0,0.00013698,2]
[422144400,1778619039000,-500.0,0.00013698,2]
[422144402,1778619039000,-500.0,0.00013698,2]
[422144370,1778619039000,-500.0,0.00013698,2]
[422144460,1778619039000,-2000.0,0.00014501,2]
[422144394,1778619039000,-500.0,0.00013698,2]
[422144464,1778619039000,-150.0,0.00014561,2]
[422144538,1778619039000,-150.0,0.00015189,2]
[422144540,1778619039000,-150.0,0.00015242,2]
[422144593,1778619039000,-150.0,0.00015419,2]
[422144545,1778619039000,-150.0,0.00015304,2]
[422144549,1778619039000,-150.0,0.00015304,2]
[422144551,1778619039000,-150.0,0.00015304,2]
[422144542,1778619039000,-150.0,0.00015257,2]
[422144553,1778619039000,-999.99,0.0001531,2]
[422144547,1778619039000,-150.0,0.00015304,2]
[422144555,1778619039000,-150.99,0.0001531,2]
[422144560,1778619039000,-1324.75,0.0001531,2]
[422144558,1778619039000,-61414.44,0.0001531,2]
[422144536,1778619039000,-150.0,0.00015189,2]
[422144562,1778619039000,-1195.28,0.0001531,2]
[422144578,1778619039000,-9999.99,0.0001531,2]
[422144576,1778619039000,-9999.99,0.0001531,2]
[422144566,1778619039000,-12154.2,0.0001531,2]
[422144564,1778619039000,-4999.99,0.0001531,2]
[422144570,1778619039000,-1215.06,0.0001531,2]
[422144571,1778619039000,-299.99,0.0001531,2]
[422144568,1778619039000,-9999.99,0.0001531,2]
[422144584,1778619039000,-161.92,0.00015345,2]
[422144580,1778619039000,-4513.87,0.0001531,2]
[422144582,1778619039000,-6056.41,0.0001531,2]
[422144591,1778619039000,-150.0,0.00015419,2]
[422144588,1778619039000,-150.0,0.00015351,2]
[422144574,1778619039000,-7840.61,0.0001531,2]
[422144535,1778619039000,-150.0,0.0001518,2]
[422144589,1778619039000,-150.0,0.00015366,2]
[422144531,1778619039000,-150.0,0.00015118,2]
[422144533,1778619039000,-150.0,0.00015162,2]
[422144470,1778619039000,-1285.03,0.000146,2]
[422144477,1778619039000,-161.92,0.00014678,2]
[422144479,1778619039000,-150.0,0.00014685,2]
[422144481,1778619039000,-150.0,0.00014688,2]
[422144483,1778619039000,-150.0,0.00014729,2]
[422144486,1778619039000,-150.0,0.00014729,2]
[422144492,1778619039000,-150.0,0.00014783,2]
[422144494,1778619039000,-150.0,0.00014808,2]
[422144488,1778619039000,-150.0,0.00014746,2]
[422144490,1778619039000,-150.0,0.00014767,2]
[422144498,1778619039000,-150.0,0.0001487,2]
[422144496,1778619039000,-150.0,0.00014844,2]
[422144500,1778619039000,-150.0,0.00014878,2]
[422144467,1778619039000,-150.0,0.00014593,2]
[422144504,1778619039000,-150.0,0.00014901,2]
[422144502,1778619039000,-230.37770216,0.000149,2]
[422144515,1778619039000,-150.0,0.00014994,2]
[422144519,1778619039000,-150.0,0.00015036,2]
[422144516,1778619039000,-150.0,0.00015036,2]
[422144523,1778619039000,-150.0,0.00015056,2]
[422144529,1778619039000,-150.0,0.00015074,2]
[422144513,1778619039000,-150.0,0.00014972,2]
[422144527,1778619039000,-570.12,0.00015068,2]
[422144521,1778619039000,-150.0,0.00015036,2]
[422144511,1778619039000,-150.0,0.00014959,2]
[422144509,1778619039000,-150.0,0.00014959,2]
[422144507,1778619039000,-150.0,0.00014932,2]
[422144525,1778619039000,-150.0,0.00015067,2]
[422144682,1778619040000,-150.0,0.00016015,2]
[422144699,1778619040000,-150.0,0.0001611,2]
[422144686,1778619040000,-150.00000001,0.0001611,2]
[422144684,1778619040000,-150.0,0.00016048,2]
[422144679,1778619040000,-161.92,0.00016012,2]
[422144671,1778619040000,-150.0,0.00015986,2]
[422144675,1778619040000,-152.0,0.00016005,2]
[422144667,1778619040000,-2000.0,0.00015951,2]
[422144669,1778619040000,-4609.0,0.00015975,2]
[422144673,1778619040000,-150.0,0.00015995,2]
[422144677,1778619040000,-152.0,0.00016005,2]
[422144696,1778619040000,-177.0614353,0.0001611,2]
[422144701,1778619040000,-150.0,0.0001611,2]
[422144692,1778619040000,-153.7308558,0.0001611,2]
[422144690,1778619040000,-150.0,0.0001611,2]
[422144694,1778619040000,-150.0,0.0001611,2]
[422144706,1778619040000,-151.0,0.00016324,2]
[422144665,1778619040000,-150.0,0.00015924,2]
[422144705,1778619040000,-151.0,0.00016324,2]
[422144703,1778619040000,-151.0,0.00016324,2]
[422144708,1778619040000,-151.0,0.00016324,2]
[422144712,1778619040000,-151.0,0.00016324,2]
[422144714,1778619040000,-151.0,0.00016324,2]
[422144710,1778619040000,-151.0,0.00016324,2]
[422144718,1778619040000,-151.0,0.00016324,2]
[422144716,1778619040000,-151.0,0.00016324,2]
[422144688,1778619040000,-175.29480256,0.0001611,2]